fUSD/lending_fUSD_20260121
["ID","MTS","AMOUNT","RATE_DAILY","PERIOD"]
[402907563,1768978240681,-500.0,0.00017073,2]
[402907564,1768978240690,-162.82594348,0.00017073,2]
[402907565,1768978240699,-500.0,0.00017073,2]
[402907566,1768978240709,-500.0,0.00017073,2]
[402907567,1768978240719,-500.53278325,0.00017073,2]
[402907569,1768978240728,-500.0,0.00017073,2]
[402907571,1768978240737,-166.15547505,0.00017073,2]
[402907572,1768978240747,-500.44081703,0.00017073,2]
[402907573,1768978240756,-500.50663341,0.00017073,2]
[402907574,1768978240765,-501.05525398,0.00017073,2]
[402907575,1768978240774,-502.88288877,0.00017073,2]
[402907576,1768978240784,-500.71668526,0.00017073,2]
[402907578,1768978240797,-500.24354149,0.00017073,2]
[402907580,1768978240806,-501.80045259,0.00017073,2]
[402907582,1768978240815,-500.0,0.00017073,2]
[402907583,1768978240824,-169.41492416,0.00017073,2]
[402907584,1768978240835,-163.65383635,0.00017073,2]
[402907585,1768978240844,-500.67790697,0.00017073,2]
[402907586,1768978240854,-500.58756359,0.00017073,2]
[402907587,1768978240864,-500.0,0.00017073,2]
[402907588,1768978240875,-200.0,0.00017084,2]
[402907589,1768978240884,-151.0,0.00017096,2]
[402907590,1768978240894,-4321.77131334,0.00017099,2]
[402907591,1768978240903,-2048.26176511,0.00017099,2]
[402907592,1768978240912,-982.0402849,0.00017099,2]
[402907593,1768978240922,-322.6107,0.00017099,2]
[402907594,1768978240931,-721.12765534,0.00017099,2]
[402907595,1768978240941,-250.0,0.00017099,2]
[402907596,1768978240950,-250.0,0.00017099,2]
[402907597,1768978240959,-174.61919141,0.00017099,2]
[402907598,1768978240968,-533.88981491,0.00017099,2]
[402907599,1768978240977,-250.0,0.00017099,2]
[402907600,1768978240986,-250.0,0.00017099,2]
[402907601,1768978240995,-303.89373247,0.00017099,2]
[402907602,1768978241004,-250.0,0.00017099,2]
[402907603,1768978241013,-250.0,0.00017099,2]
[402907604,1768978241022,-578.20924308,0.00017099,2]
[402907605,1768978241032,-250.0,0.00017099,2]
[402907606,1768978241041,-250.0,0.00017099,2]
[402907607,1768978241051,-250.0,0.00017099,2]
[402907608,1768978241060,-250.0,0.00017099,2]
[402907609,1768978241069,-250.0,0.00017099,2]
[402907610,1768978241078,-2000.0,0.00017099,2]
[402907611,1768978241087,-2000.0,0.00017099,2]
[402907612,1768978241096,-2000.0,0.00017099,2]
[402907613,1768978241105,-2000.0,0.00017099,2]
[402907614,1768978241115,-2000.0,0.00017099,2]
[402907615,1768978241123,-250.0,0.00017099,2]
[402907616,1768978241132,-2000.0,0.00017099,2]
[402907617,1768978241141,-250.0,0.00017099,2]
[402907618,1768978241150,-2000.0,0.00017099,2]
[402907619,1768978241159,-500.0,0.00017099,2]
[402907620,1768978241169,-2000.0,0.00017099,2]
[402907621,1768978241178,-250.0,0.00017099,2]
[402907622,1768978241187,-262.50340931,0.00017099,2]
[402907623,1768978241196,-2081.53780851,0.00017099,2]
[402907624,1768978241205,-500.0,0.00017099,2]
[402907625,1768978241214,-2000.0,0.00017099,2]
[402907626,1768978241224,-500.0,0.00017099,2]
[402907627,1768978241233,-2000.0,0.00017099,2]
[402907628,1768978241242,-250.0,0.00017099,2]
[402907629,1768978241251,-500.0,0.00017099,2]
[402907630,1768978241260,-2000.0,0.00017099,2]
[402907631,1768978241269,-250.0,0.00017099,2]
[402907632,1768978241278,-500.0,0.00017099,2]
[402907633,1768978241287,-2000.0,0.00017099,2]
[402907634,1768978241296,-250.0,0.00017099,2]
[402907635,1768978241306,-549.25704845,0.00017099,2]
[402907636,1768978241315,-2000.0,0.00017099,2]
[402907637,1768978241324,-250.0,0.00017099,2]
[402907638,1768978241333,-2000.0,0.00017099,2]
[402907639,1768978241342,-250.0,0.00017099,2]
[402907640,1768978241351,-2567.0,0.00017099,2]
[402907641,1768978241360,-2000.0,0.00017099,2]
[402907642,1768978241369,-250.0,0.00017099,2]
[402907643,1768978241382,-2000.0,0.00017099,2]
[402907644,1768978241391,-295.89130143,0.00017099,2]
[402907645,1768978241400,-1268.37155993,0.00017099,2]
[402907646,1768978241409,-2000.0,0.00017099,2]
[402907647,1768978241418,-1889.64971391,0.00017099,2]
[402907648,1768978241427,-1489.30048147,0.00017099,2]
[402907649,1768978241436,-500.0,0.00017099,2]
[402907650,1768978241445,-500.0,0.00017099,2]
[402907651,1768978241454,-500.0,0.00017099,2]
[402907652,1768978241464,-500.0,0.00017099,2]
[402907653,1768978241473,-500.0,0.00017099,2]
[402907654,1768978241482,-264.85852013,0.00017099,2]
[402907655,1768978241491,-620.0,0.00017099,2]
[402907656,1768978241500,-1000.0,0.00017099,2]
[402907657,1768978241510,-1000.0,0.00017099,2]
[402907658,1768978241520,-1000.0,0.00017099,2]
[402907659,1768978241530,-1000.0,0.00017099,2]
[402907660,1768978241539,-1000.0,0.00017099,2]
[402907661,1768978241549,-1000.0,0.00017099,2]
[402907662,1768978241559,-1000.0,0.00017099,2]
[402907663,1768978241568,-1000.0,0.00017099,2]
[402907664,1768978241578,-1000.0,0.00017099,2]
[402907665,1768978241587,-1000.0,0.00017099,2]
[402907666,1768978241597,-1000.0,0.00017099,2]
[402907667,1768978241606,-18476.62399491,0.000171,2]
[402907668,1768978241616,-400.0,0.00017133,2]
[402907669,1768978241625,-174.26,0.0001716,2]
[402907670,1768978241635,-288.42,0.0001716,2]
[402907671,1768978241644,-500.0,0.0001717,2]
[402907672,1768978241654,-14044.61922147,0.0001717,2]
[402907673,1768978241664,-18476.62399491,0.00017233,2]
[402907674,1768978241673,-203.81812262,0.00017235,2]
[402907675,1768978241682,-200.0,0.00017235,2]
[402907676,1768978241692,-500.0,0.00017235,2]
[402907677,1768978241701,-490.35,0.00017235,2]
[402907678,1768978241711,-287.0,0.00017284,2]
[402907679,1768978241720,-308.0,0.00017311,2]
[402907680,1768978241731,-287.0,0.00017315,2]
[402907681,1768978241741,-14044.61922147,0.00017316,2]
[402907682,1768978241750,-287.0,0.00017354,2]
[402907683,1768978241764,-18476.62399491,0.00017367,2]
[402907684,1768978241774,-500.15189466,0.00017373,2]
[402907685,1768978241783,-500.13630918,0.00017373,2]
[402907686,1768978241796,-500.29132853,0.00017373,2]
[402907687,1768978241806,-500.75033377,0.00017373,2]
[402907688,1768978241817,-380.21596322,0.00017373,2]
[402907689,1768978241826,-500.0,0.00017373,2]
[402907690,1768978241837,-502.38199886,0.00017373,2]
[402907691,1768978241847,-500.0,0.00017373,2]
[402907692,1768978241857,-242.00387817,0.00017373,2]
[402907693,1768978241866,-642.91001441,0.00017373,2]
[402907694,1768978241876,-500.0,0.00017373,2]
[402907695,1768978241885,-500.99033758,0.00017373,2]
[402907696,1768978241894,-150.0,0.00017373,2]
[402907697,1768978241903,-500.36416289,0.00017373,2]
[402907698,1768978241913,-500.0,0.00017373,2]
[402907699,1768978241923,-500.0,0.00017373,2]
[402907700,1768978241934,-501.38611894,0.00017373,2]
[402907701,1768978241943,-500.0,0.00017373,2]
[402907702,1768978241952,-501.89517318,0.00017373,2]
[402907703,1768978241962,-500.17425444,0.00017373,2]
[402907704,1768978241971,-287.0,0.00017392,2]
[402907705,1768978241981,-287.0,0.00017436,2]
[402907706,1768978241990,-963.0,0.0001745,2]
[402907707,1768978242000,-287.0,0.00017461,2]
[402907708,1768978242010,-14044.61922147,0.00017462,2]
[402907709,1768978242020,-18476.62399491,0.000175,2]
[402907710,1768978242029,-490.35,0.00017509,2]
[402907711,1768978242039,-963.0,0.00017511,2]
[402907712,1768978242048,-600.0,0.000176,6]
[402907713,1768978242058,-14044.61922147,0.00017608,2]
[402907714,1768978242067,-540.26545562,0.00017621,2]
[402907715,1768978242077,-520.57165728,0.00017621,2]
[402907716,1768978242087,-501.61121988,0.00017621,2]
[402907717,1768978242096,-503.46490189,0.00017621,2]
[402907718,1768978242106,-504.13204303,0.00017621,2]
[402907719,1768978242116,-1000.0,0.00017621,2]
[402907720,1768978242126,-500.80034894,0.00017621,2]
[402907721,1768978242136,-502.83012904,0.00017621,2]
[402907722,1768978242147,-788.86247643,0.00017621,2]
[402907723,1768978242157,-500.76797646,0.00017621,2]
[402907724,1768978242167,-500.0,0.00017621,2]
[402907725,1768978242176,-501.61885564,0.00017621,2]
[402907726,1768978242186,-18476.62399491,0.00017633,2]
[402907727,1768978242196,-3084.73404172,0.0001764,2]
[402907728,1768978242206,-181.08010149,0.00017647,2]
[402907729,1768978242215,-553.64373807,0.00017647,2]
[402907730,1768978242225,-287.0,0.00017697,2]
[402907731,1768978242234,-835.01,0.00017697,2]
[402907732,1768978242244,-161.0,0.000177,2]
[402907733,1768978242253,-161.0,0.000177,2]
[402907734,1768978242263,-800.0,0.000177,6]
[402907735,1768978242272,-150.0,0.00017726,2]
[402907736,1768978242282,-150.0,0.00017726,2]
[402907737,1768978242292,-150.0,0.00017726,2]
[402907738,1768978242302,-150.0,0.00017726,2]
[402907739,1768978242315,-500.0,0.00017726,2]
[402907740,1768978242325,-150.0,0.00017726,2]
[402907741,1768978242334,-150.0,0.00017726,2]
[402907742,1768978242344,-150.0,0.00017726,2]
[402907743,1768978242354,-179.78440682,0.00017726,2]
[402907744,1768978242364,-500.0,0.00017726,2]
[402907745,1768978242373,-150.0,0.00017726,2]
[402907746,1768978242383,-150.0,0.00017726,2]
[402907747,1768978242394,-150.0,0.00017726,2]
[402907748,1768978242407,-500.0,0.00017726,2]
[402907749,1768978242416,-468.0,0.00017726,2]
[402907750,1768978242425,-500.0,0.00017726,2]
[402907751,1768978242434,-150.79763478,0.00017726,2]
[402907752,1768978242444,-150.0,0.00017726,2]
[402907753,1768978242454,-500.0,0.00017726,2]
[402907754,1768978242463,-500.0,0.00017726,2]
[402907755,1768978242474,-150.0,0.00017726,2]
[402907756,1768978242485,-500.0,0.00017726,2]
[402907757,1768978242495,-150.0,0.00017726,2]
[402907758,1768978242505,-500.0,0.00017726,2]
[402907759,1768978242515,-500.0,0.00017726,2]
[402907760,1768978242525,-500.0,0.00017726,2]
[402907761,1768978242536,-150.0,0.00017726,2]
[402907762,1768978242546,-150.0,0.00017726,2]
[402907763,1768978242557,-150.0,0.00017726,2]
[402907764,1768978242567,-287.0,0.00017745,2]
[402907765,1768978242577,-14044.61922147,0.00017754,2]
[402907766,1768978242588,-1000.0,0.00017765,2]
[402907767,1768978242598,-18476.62399491,0.00017767,2]
[402907768,1768978242608,-150.0,0.00017781,2]
[402907769,1768978242617,-150.0,0.00017781,2]
[402907770,1768978242628,-159.3784323,0.00017781,2]
[402907771,1768978242638,-150.0,0.00017781,2]
[402907772,1768978242649,-500.0,0.00017781,2]
[402907773,1768978242658,-150.0,0.00017781,2]
[402907774,1768978242668,-150.0,0.00017781,2]
[402907775,1768978242679,-500.0,0.00017781,2]
[402907776,1768978242689,-150.0,0.00017781,2]
[402907777,1768978242700,-224.73746907,0.00017781,2]
[402907778,1768978242710,-150.0,0.00017781,2]
[402907779,1768978242719,-500.0,0.00017781,2]
[402907780,1768978242729,-468.0,0.00017781,2]
[402907781,1768978242983,-500.0,0.00017781,2]
[402907783,1768978242993,-150.0,0.00017781,2]
[402907784,1768978243003,-500.0,0.00017781,2]
[402907785,1768978243014,-500.0,0.00017781,2]
[402907786,1768978243024,-150.0,0.00017781,2]
[402907787,1768978243033,-500.0,0.00017781,2]
[402907788,1768978243043,-500.0,0.00017781,2]
[402907789,1768978243052,-500.0,0.00017781,2]
[402907790,1768978243061,-500.0,0.00017781,2]
[402907791,1768978243071,-150.0,0.00017781,2]
[402907792,1768978243082,-500.0,0.00017783,2]
[402907793,1768978243094,-490.36836186,0.00017783,2]
[402907794,1768978243105,-1600.0,0.00017796,2]
[402907795,1768978243115,-1000.0,0.000178,2]
[402907796,1768978243125,-1000.0,0.000178,6]
[402907797,1768978243134,-500.0,0.00017808,2]
[402907798,1768978243144,-150.0,0.00017808,2]
[402907799,1768978243153,-1356.26343,0.0001782,2]
[402907800,1768978243163,-1356.26343,0.0001782,2]
[402907801,1768978243173,-1356.26343,0.0001782,2]
[402907802,1768978243184,-1356.26342,0.0001782,2]
[402907803,1768978243193,-162.89,0.0001783,2]
[402907804,1768978243203,-5224.98447911,0.0001783,2]
[402907805,1768978243214,-150.0,0.00017836,2]
[402907806,1768978243225,-150.0,0.00017836,2]
[402907807,1768978243236,-500.0,0.00017836,2]
[402907808,1768978243246,-200.0,0.00017836,2]
[402907809,1768978243256,-200.0,0.00017836,2]
[402907810,1768978243266,-170.7902367,0.00017836,2]
[402907811,1768978243276,-150.0,0.00017836,2]
[402907812,1768978243285,-500.0,0.00017836,2]
[402907813,1768978243295,-150.0,0.00017836,2]
[402907814,1768978243305,-468.0,0.00017836,2]
[402907815,1768978243315,-171.95168859,0.00017836,2]
[402907816,1768978243325,-200.0,0.00017836,2]
[402907817,1768978243335,-500.0,0.00017836,2]
[402907818,1768978243344,-500.0,0.00017836,2]
[402907819,1768978243353,-500.0,0.00017836,2]
[402907820,1768978243363,-500.0,0.00017836,2]
[402907821,1768978243372,-500.0,0.00017836,2]
[402907822,1768978243381,-500.0,0.00017836,2]
[402907823,1768978243391,-150.0,0.00017836,2]
[402907824,1768978243402,-500.0,0.00017863,2]
[402907825,1768978243412,-150.0,0.00017863,2]
[402907826,1768978243421,-688.0114059,0.00017873,2]
[402907827,1768978243431,-150.0,0.0001789,2]
[402907828,1768978243440,-500.0,0.0001789,2]
[402907829,1768978243450,-210.19749043,0.0001789,2]
[402907830,1768978243459,-500.0,0.0001789,2]
[402907831,1768978243468,-468.0,0.0001789,2]
[402907832,1768978243477,-200.0,0.0001789,2]
[402907833,1768978243487,-500.0,0.0001789,2]
[402907834,1768978243497,-500.0,0.0001789,2]
[402907835,1768978243508,-500.0,0.0001789,2]
[402907836,1768978243518,-500.0,0.0001789,2]
[402907837,1768978243528,-573.52774177,0.0001789,2]
[402907838,1768978243538,-500.0,0.0001789,2]
[402907839,1768978243547,-150.0,0.0001789,2]
[402907840,1768978243557,-1711.2931,0.000179,2]
[402907841,1768978243571,-1000.0,0.000179,2]
[402907842,1768978243583,-200.0,0.000179,6]
[402907843,1768978243592,-1029.03849237,0.000179,2]
[402907844,1768978243602,-18476.62399491,0.000179,2]
[402907845,1768978243612,-14044.61922147,0.000179,2]
[402907846,1768978243621,-500.0,0.000179,2]
[402907847,1768978243631,-500.0,0.000179,2]
[402907848,1768978243640,-500.0,0.000179,2]
[402907849,1768978243650,-500.0,0.000179,2]
[402907850,1768978243659,-500.0,0.000179,2]
[402907851,1768978243668,-500.0,0.000179,2]
[402907852,1768978243677,-500.0,0.000179,2]
[402907853,1768978243687,-500.0,0.000179,2]
[402907855,1768978243700,-500.0,0.000179,2]
[402907856,1768978243709,-500.0,0.000179,2]
[402907857,1768978243719,-500.0,0.000179,2]
[402907858,1768978243728,-500.0,0.000179,2]
[402907859,1768978243737,-500.0,0.000179,2]
[402907860,1768978243746,-500.0,0.000179,2]
[402907861,1768978243755,-500.0,0.000179,2]
[402907862,1768978243764,-500.0,0.000179,2]
[402907863,1768978243774,-500.0,0.000179,2]
[402907864,1768978243784,-500.0,0.000179,2]
[402907865,1768978243796,-500.0,0.000179,2]
[402907867,1768978243806,-500.0,0.000179,2]
[402907870,1768978243815,-500.0,0.000179,2]
[402907871,1768978243824,-500.0,0.000179,2]
[402907874,1768978243835,-500.0,0.000179,2]
[402907877,1768978243844,-500.0,0.000179,2]
[402907880,1768978243853,-500.0,0.000179,2]
[402907881,1768978243863,-500.0,0.000179,2]
[402907882,1768978243872,-500.0,0.000179,2]
[402907883,1768978243881,-500.0,0.000179,2]
[402907884,1768978243890,-500.0,0.000179,2]
[402907885,1768978243899,-500.0,0.000179,2]
[402907886,1768978243908,-6335.0,0.000179,2]
[402907887,1768978243917,-503.51325329,0.00017918,2]
[402907888,1768978243927,-200.49238854,0.00017918,2]
[402907889,1768978243936,-250.0,0.00017921,2]
[402907890,1768978243946,-500.0,0.00017921,2]
[402907891,1768978243955,-223.24310385,0.00017945,2]
[402907892,1768978243964,-500.0,0.00017945,2]
[402907893,1768978243973,-460.0,0.00017945,2]
[402907894,1768978243983,-468.0,0.00017945,2]
[402907895,1768978243992,-250.62704032,0.00017945,2]
[402907896,1768978244001,-500.0,0.00017945,2]
[402907897,1768978244010,-291.42851787,0.00017945,2]
[402907898,1768978244020,-340.31747829,0.00017945,2]
[402907899,1768978244029,-500.0,0.00017945,2]
[402907900,1768978244038,-296.4287002,0.00017945,2]
[402907901,1768978244047,-963.0,0.00017957,2]
[402907902,1768978244056,-287.0,0.00017959,2]
[402907903,1768978244066,-346.57,0.00017963,2]
[402907904,1768978244075,-15055.0,0.00017973,2]
[402907905,1768978244084,-30553.0,0.00017973,2]
[402907906,1768978244094,-150.0,0.00017973,2]
[402907907,1768978244103,-150.0,0.00017973,2]
[402907908,1768978244113,-500.0,0.00017982,2]
[402907909,1768978244122,-287.0,0.00017984,2]
[402907910,1768978244132,-287.0,0.00017986,2]
[402907911,1768978244142,-305.22366862,0.0001799,2]
[402907912,1768978244152,-305.22366862,0.0001799,2]
[402907913,1768978244161,-151.0,0.00017997,2]
[402907914,1768978244171,-150.0,0.00017999,2]
[402907915,1768978244180,-292.26177784,0.00017999,2]
[402907916,1768978244190,-3072.1497365,0.00017999,2]
[402907917,1768978244199,-300.0,0.00017999,2]
[402907918,1768978244209,-666.0,0.00017999,2]
[402907919,1768978244218,-46482.0166363,0.00017999,2]
[402907920,1768978244229,-500.0,0.00018,2]
[402907921,1768978244239,-468.0,0.00018,2]
[402907922,1768978244248,-500.0,0.00018,2]
[402907923,1768978244258,-500.0,0.00018,2]
[402907924,1768978244269,-1133336.50562402,0.00018,2]
[402907925,1768978244298,-330.7844132,0.00018,2]
[402907926,1768978244769,-151.0,0.00016979,2]
[402907927,1768978244779,-1967384.69910601,0.00018,2]
[402907928,1768978244791,-45368.50967968,0.00018,2]
[402907929,1768978244800,-2239597.32325439,0.00018,2]
[402907930,1768978244809,-151.0,0.00018,2]
[402907931,1768978244818,-237.73121202,0.00018,2]
[402907932,1768978244827,-193.033,0.00018,2]
[402907933,1768978244838,-151.0,0.00018,2]
[402907934,1768978244847,-1264.0,0.00018,2]
[402907935,1768978244856,-151.0,0.00018,2]
[402907936,1768978244868,-151.0,0.00018,2]
[402907937,1768978244877,-151.0,0.00018,2]
[402907938,1768978244886,-151.0,0.00018,2]
[402907939,1768978244896,-151.0,0.00018,2]
[402907940,1768978244906,-158.0,0.00018,2]
[402907941,1768978244915,-158.0,0.00018,2]
[402907942,1768978244925,-1356.26342,0.00018,2]
[402907943,1768978244934,-1356.26343,0.00018,2]
[402907944,1768978244943,-151.0,0.00018,2]
[402907945,1768978244953,-151.0,0.00018,2]
[402907946,1768978244962,-151.0,0.00018,2]
[402907947,1768978244971,-208.911265,0.00018,2]
[402907948,1768978244981,-179.82,0.0001802,2]
[402907949,1768978244990,-150.0,0.00018028,2]
[402907950,1768978244999,-174.26,0.00018055,2]
[402907951,1768978245009,-336.48142665,0.00018055,2]
[402907952,1768978245018,-468.0,0.00018055,2]
[402907953,1768978245027,-500.0,0.00018055,2]
[402907954,1768978245037,-500.0,0.00018055,2]
[402907955,1768978245046,-150.00014031,0.00018081,2]
[402907956,1768978245056,-176.87041073,0.00018083,2]
[402907957,1768978245065,-468.0,0.0001811,2]
[402907958,1768978245074,-500.0,0.0001811,2]
[402907959,1768978245084,-500.0,0.0001811,2]
[402907960,1768978245094,-420.0,0.00018132,2]
[402907961,1768978245103,-193.0,0.0001814,2]
[402907962,1768978245113,-300.0,0.0001814,2]
[402907963,1768978245123,-193.0,0.0001814,2]
[402907964,1768978245133,-200.0,0.0001814,2]
[402907965,1768978245142,-2500.0,0.0001814,2]
[402907966,1768978245152,-195.0,0.0001814,2]
[402907967,1768978245161,-300.0,0.0001814,2]
[402907968,1768978245171,-468.0,0.00018164,2]
[402907969,1768978245247,-350.0,0.00018164,2]
[402907970,1768978245256,-500.0,0.00018164,2]
[402907971,1768978245267,-322.89025,0.00018168,2]
[402907972,1768978245278,-187.78006524,0.00018195,2]
[402907973,1768978245287,-699.36636789,0.00018195,2]
[402907974,1768978245297,-4564.7,0.00018209,2]
[402907975,1768978245306,-468.0,0.00018219,2]
[402907976,1768978245316,-500.0,0.00018219,2]
[402907977,1768978245325,-1680.0,0.00018222,2]
[402907978,1768978245335,-963.0,0.00018249,2]
[402907979,1768978245344,-250.0,0.00018253,2]
[402907980,1768978245353,-468.0,0.00018274,2]
[402907981,1768978245362,-500.0,0.00018274,2]
[402907982,1768978245371,-468.0,0.00018329,2]
[402907983,1768978245380,-500.0,0.00018329,2]
[402907984,1768978245389,-468.0,0.00018384,2]
[402907985,1768978245400,-500.0,0.00018384,2]
[402907986,1768978245410,-468.0,0.00018438,2]
[402907987,1768978245418,-500.0,0.00018438,2]
[402907988,1768978245428,-334.5472959,0.00018468,2]
[402907989,1768978245437,-450.0,0.00018468,2]
[402907990,1768978245446,-468.0,0.00018493,2]
[402907991,1768978245455,-835.01,0.00018502,2]
[402907992,1768978245464,-468.0,0.00018548,2]
[402907993,1768978245473,-468.0,0.00018603,2]
[402907994,1768978245482,-180.82,0.00018638,2]
[402907995,1768978245491,-287.0,0.00018646,2]
[402907996,1768978245500,-287.0,0.00018655,2]
[402907997,1768978245509,-468.0,0.00018658,2]
[402907998,1768978245519,-393.99404815,0.00018704,2]
[402907999,1768978245528,-468.0,0.00018712,2]
[402908000,1768978245538,-963.0,0.00018722,2]
[402908001,1768978245547,-468.0,0.00018767,2]
[402908002,1768978245556,-468.0,0.00018822,2]
[402908003,1768978245566,-287.0,0.00018869,2]
[402908004,1768978245574,-468.0,0.00018877,2]
[402908005,1768978245584,-287.0,0.00018906,2]
[402908006,1768978245593,-287.0,0.0001893,2]
[402908007,1768978245602,-468.0,0.00018931,2]
[402908008,1768978245611,-174.26,0.0001895,2]
[402908009,1768978245620,-287.0,0.00018975,2]
[402908010,1768978245629,-471.0,0.00018986,2]
[402908011,1768978245638,-287.0,0.00018996,2]
[402908012,1768978245648,-760.80636593,0.00019,2]
[402908013,1768978245657,-287.0,0.0001902,2]
[402908014,1768978245666,-3637.034315,0.00019081,2]
[402908015,1768978245675,-365.76,0.00019178,30]
[402908016,1768978245684,-835.01,0.00019306,2]
[402908017,1768978245693,-346.57,0.00019333,2]
[402908018,1768978245702,-150.00014031,0.00019336,7]
[402908019,1768978245711,-811.5320491,0.0001956,2]
[402908020,1768978245720,-512.0,0.000196,2]
[402908021,1768978245730,-1000.0,0.00019739,2]
[402908022,1768978245739,-2567.0,0.00019838,2]
[402908023,1768978245749,-200.0,0.00019961,2]
[402908024,1768978245758,-500.0,0.00019982,2]
[402908025,1768978245767,-832.99271072,0.00019997,2]
[402908026,1768978245776,-157.0,0.0002,2]
[402908027,1768978245786,-205.0,0.0002001,2]
[402908028,1768978245797,-10371.539816,0.00020281,2]
[402908029,1768978245807,-4564.7,0.00020461,2]
[402908030,1768978245816,-627.54405671,0.00020565,2]
[402908031,1768978245826,-174.58,0.0002058,2]
[402908032,1768978245835,-152.9533289,0.0002079,2]
[402908033,1768978245845,-2314.2033401,0.0002079,2]
[402908034,1768978245854,-288.42,0.0002101,2]
[402908035,1768978245864,-180.82,0.000213,2]
[402908036,1768978245882,-1000.0,0.00021713,2]
[402908037,1768978245895,-150.00014031,0.00021847,18]
[402908038,1768978245904,-5000.0,0.00021918,2]
[402908039,1768978245914,-192.48,0.00022,7]
[402908040,1768978245924,-824.33,0.00022,2]
[402908041,1768978245933,-151.0,0.000225,2]
[402908042,1768978245943,-188.26,0.00022522,2]
[402908043,1768978245952,-2567.0,0.00022577,2]
[402908044,1768978245961,-188.26,0.00022599,2]
[402908045,1768978245971,-1872.0404103,0.000226,2]
[402908046,1768978245980,-151.0,0.000226,2]
[402908048,1768978245990,-151.0,0.000226,2]
[402908049,1768978245999,-160.68788959,0.000226,2]
[402908050,1768978246009,-4564.7,0.00022712,2]
[402908051,1768978246018,-200.0,0.00022837,2]
[402908052,1768978246027,-3986.16434333,0.00023,2]
[402908053,1768978246037,-151.0,0.00023,2]
[402908054,1768978246048,-188.25,0.000231,14]
[402908055,1768978246057,-150.00014031,0.00023102,23]
[402908056,1768978246067,-832.99271072,0.00023294,2]
[402908057,1768978246076,-512.0,0.00023375,5]
[402908058,1768978246085,-1000.0,0.00023687,2]
[402908059,1768978246095,-180.82,0.00023963,2]
[402908060,1768978246105,-689.41,0.00024,30]
[402908061,1768978246114,-965.82,0.00024126,2]
[402908063,1768978246124,-288.42,0.00024189,2]
[402908064,1768978246133,-365.76,0.00024225,30]
[402908065,1768978246143,-150.00014031,0.00024357,28]
[402908066,1768978246152,-627.54405671,0.00024432,2]
[402908067,1768978246161,-151.0,0.000245,2]
[402908068,1768978246171,-1000.0,0.00024658,2]
[402908069,1768978246181,-824.33,0.000247,2]
[402908070,1768978246192,-55955.7411316,0.000249,2]
[402908071,1768978246202,-4564.7,0.00024964,2]
[402908072,1768978246212,-250.0,0.00025,14]
[402908073,1768978246222,-151.0,0.00025,2]
[402908074,1768978246232,-151.0,0.00025,2]
[402908075,1768978246242,-502.0,0.00025068,2]
[402908076,1768978246252,-2567.0,0.00025316,2]
[402908077,1768978246261,-1647.69,0.00025413,2]
[402908078,1768978246270,-150.00014031,0.00025613,33]
[402908079,1768978246279,-200.0,0.00025714,2]
[402908080,1768978246288,-500.0,0.00026,10]